[Event "*** SCC Grand Prix: Titled Tuesday Blitz"]
[Site "Chess.com"]
[Date "2020.10.13"]
[Round "3"]
[White "tan275"]
[Black "mr_gustavo"]
[Result "0-1"]
[WhiteElo "2234"]
[BlackElo "2419"]
[TimeControl "180+1"]
[EndTime "10:27:02 PDT"]
[Termination "mr_gustavo won by resignation"]

1. d4 {[%clk 0:03:00.9]} 1... Nf6 {[%clk 0:02:59.8]} 2. c4 {[%clk 0:03:00.6]}
2... g6 {[%clk 0:03:00.5]} 3. g3 {[%clk 0:03:00.5]} 3... Bg7 {[%clk 0:03:00.8]}
4. Bg2 {[%clk 0:03:00.6]} 4... O-O {[%clk 0:03:01.7]} 5. Nf3 {[%clk 0:03:00.6]}
5... d6 {[%clk 0:03:02.1]} 6. Nc3 {[%clk 0:02:58.7]} 6... Nc6 {[%clk 0:03:02.4]}
7. O-O {[%clk 0:02:53.7]} 7... Bg4 {[%clk 0:03:02.8]} 8. d5 {[%clk 0:02:50.7]}
8... Na5 {[%clk 0:03:01.7]} 9. Nd2 {[%clk 0:02:45.5]} 9... c5 {[%clk 0:03:01.2]}
10. Qc2 {[%clk 0:02:35]} 10... a6 {[%clk 0:03:00.7]} 11. b3 {[%clk 0:02:33.9]}
11... Rb8 {[%clk 0:02:59.9]} 12. Bb2 {[%clk 0:02:32.3]} 12... b5 {[%clk
0:02:58.1]} 13. e4 {[%clk 0:02:17.8]} 13... bxc4 {[%clk 0:02:56.5]} 14. bxc4
{[%clk 0:02:09.9]} 14... Qc7 {[%clk 0:02:52.3]} 15. Rab1 {[%clk 0:02:08.7]}
15... Bd7 {[%clk 0:02:51.1]} 16. Ba1 {[%clk 0:02:01.3]} 16... Rb4 {[%clk
0:02:48.3]} 17. a3 {[%clk 0:02:00.3]} 17... Rxb1 {[%clk 0:02:48.1]} 18. Rxb1
{[%clk 0:01:58.1]} 18... Rb8 {[%clk 0:02:49]} 19. Bf1 {[%clk 0:01:34.1]} 19...
Rxb1 {[%clk 0:02:39.4]} 20. Qxb1 {[%clk 0:01:28.2]} 20... Qb7 {[%clk 0:02:39.9]}
21. Qxb7 {[%clk 0:01:18.7]} 21... Nxb7 {[%clk 0:02:40.8]} 22. f4 {[%clk
0:01:14.1]} 22... Ng4 {[%clk 0:02:27.4]} 23. Nf3 {[%clk 0:00:52.2]} 23... Ne3
{[%clk 0:02:11.5]} 24. Kf2 {[%clk 0:00:46.8]} 24... Nxf1 {[%clk 0:02:08.6]} 25.
Kxf1 {[%clk 0:00:46.8]} 25... Na5 {[%clk 0:02:09.2]} 26. Nd2 {[%clk 0:00:45.8]}
26... f5 {[%clk 0:01:56.6]} 27. exf5 {[%clk 0:00:39.2]} 27... Bxf5 {[%clk
0:01:55.3]} 28. Ke1 {[%clk 0:00:39.4]} 28... Bd3 {[%clk 0:01:53]} 29. Nde4
{[%clk 0:00:28.1]} 29... Nxc4 {[%clk 0:01:44.8]} 30. Kf2 {[%clk 0:00:20.6]}
30... Bxe4 {[%clk 0:01:44.5]} 0-1

[Event "*** SCC Grand Prix: Titled Tuesday Blitz"]
[Site "Chess.com"]
[Date "2020.10.13"]
[Round "3"]
[White "Keithonsky"]
[Black "Nara_Kh"]
[Result "1-0"]
[WhiteElo "2581"]
[BlackElo "2386"]
[TimeControl "180+1"]
[EndTime "10:27:07 PDT"]
[Termination "Keithonsky won by checkmate"]

1. d4 {[%clk 0:03:00.9]} 1... d5 {[%clk 0:02:59.9]} 2. c4 {[%clk 0:03:01.3]}
2... c6 {[%clk 0:03:00.1]} 3. Nf3 {[%clk 0:03:01.7]} 3... Nf6 {[%clk 0:03:00.1]}
4. Qc2 {[%clk 0:03:02.3]} 4... dxc4 {[%clk 0:02:58.5]} 5. Qxc4 {[%clk
0:03:03.2]} 5... Bf5 {[%clk 0:02:57.7]} 6. g3 {[%clk 0:03:02.3]} 6... e6 {[%clk
0:02:57.6]} 7. Bg2 {[%clk 0:03:02.8]} 7... Nbd7 {[%clk 0:02:57.4]} 8. O-O {[%clk
0:03:03.2]} 8... h6 {[%clk 0:02:57.9]} 9. Nc3 {[%clk 0:03:03.2]} 9... Be7 {[%clk
0:02:57.9]} 10. Re1 {[%clk 0:03:03.3]} 10... Bh7 {[%clk 0:02:52.9]} 11. e4
{[%clk 0:03:02.9]} 11... O-O {[%clk 0:02:52.2]} 12. a4 {[%clk 0:03:03.3]} 12...
a5 {[%clk 0:02:49]} 13. Bf4 {[%clk 0:03:00.6]} 13... Rc8 {[%clk 0:02:39.6]} 14.
Rad1 {[%clk 0:02:56.9]} 14... Nb6 {[%clk 0:02:22.5]} 15. Qe2 {[%clk 0:02:55]}
15... Bb4 {[%clk 0:02:17.2]} 16. Ne5 {[%clk 0:02:53.7]} 16... Nfd7 {[%clk
0:02:12.6]} 17. Qc2 {[%clk 0:02:47.6]} 17... Nxe5 {[%clk 0:01:59.8]} 18. Bxe5
{[%clk 0:02:47]} 18... Qe7 {[%clk 0:01:58.6]} 19. Qb3 {[%clk 0:02:42.9]} 19...
f6 {[%clk 0:01:43.9]} 20. Bf4 {[%clk 0:02:42.4]} 20... Kh8 {[%clk 0:01:43.8]}
21. Be3 {[%clk 0:02:42.9]} 21... Nd7 {[%clk 0:01:01.4]} 22. d5 {[%clk
0:02:33.7]} 22... cxd5 {[%clk 0:01:00.9]} 23. exd5 {[%clk 0:02:34.6]} 23... e5
{[%clk 0:01:01.3]} 24. Bh3 {[%clk 0:02:33.2]} 24... Nc5 {[%clk 0:00:38.4]} 25.
Qc4 {[%clk 0:02:30.3]} 25... f5 {[%clk 0:00:30.9]} 26. d6 {[%clk 0:02:25.7]}
26... Qf7 {[%clk 0:00:29.6]} 27. Qxf7 {[%clk 0:02:20.6]} 27... Rxf7 {[%clk
0:00:30.5]} 28. Rd5 {[%clk 0:02:19.6]} 28... Nd7 {[%clk 0:00:21.2]} 29. Bd2
{[%clk 0:02:19.4]} 29... Rf6 {[%clk 0:00:17.4]} 30. Rd1 {[%clk 0:02:16.3]} 30...
Rxd6 {[%clk 0:00:16.6]} 31. Rxd6 {[%clk 0:02:16.2]} 31... Bxd6 {[%clk
0:00:17.5]} 32. Bxh6 {[%clk 0:02:16.9]} 32... gxh6 {[%clk 0:00:10.4]} 33. Rxd6
{[%clk 0:02:16.8]} 33... Nc5 {[%clk 0:00:11.3]} 34. Rxh6 {[%clk 0:02:16.1]}
34... Rd8 {[%clk 0:00:11.1]} 35. Bxf5 {[%clk 0:02:15.5]} 35... Kg7 {[%clk
0:00:09]} 36. Rxh7+ {[%clk 0:02:15.7]} 36... Kf6 {[%clk 0:00:09.4]} 37. g4
{[%clk 0:02:16.1]} 37... Rd2 {[%clk 0:00:07.9]} 38. Rc7 {[%clk 0:02:14.3]} 38...
Nb3 {[%clk 0:00:07]} 39. Ne4# {[%clk 0:02:14.2]} 1-0

[Event "*** SCC Grand Prix: Titled Tuesday Blitz"]
[Site "Chess.com"]
[Date "2020.10.13"]
[Round "3"]
[White "K_A_S_T_O_R"]
[Black "Indianlad"]
[Result "1-0"]
[WhiteElo "2708"]
[BlackElo "2905"]
[TimeControl "180+1"]
[EndTime "10:27:10 PDT"]
[Termination "K_A_S_T_O_R won by resignation"]

1. e4 {[%clk 0:03:00.9]} 1... c6 {[%clk 0:02:59.6]} 2. c4 {[%clk 0:02:58]} 2...
d5 {[%clk 0:02:57.8]} 3. cxd5 {[%clk 0:02:58.3]} 3... cxd5 {[%clk 0:02:58.7]} 4.
exd5 {[%clk 0:02:58.7]} 4... Nf6 {[%clk 0:02:59.1]} 5. Nc3 {[%clk 0:02:59.2]}
5... g6 {[%clk 0:02:59.4]} 6. Bc4 {[%clk 0:02:49.1]} 6... Bg7 {[%clk 0:02:59.4]}
7. Nf3 {[%clk 0:02:49.3]} 7... O-O {[%clk 0:03:00]} 8. O-O {[%clk 0:02:48.8]}
8... Nbd7 {[%clk 0:03:00.7]} 9. d3 {[%clk 0:02:46.3]} 9... Nb6 {[%clk
0:03:00.6]} 10. Qb3 {[%clk 0:02:45]} 10... Bg4 {[%clk 0:03:00.5]} 11. Ne5 {[%clk
0:02:43.9]} 11... Qc7 {[%clk 0:03:00.6]} 12. Re1 {[%clk 0:02:37.9]} 12... Bf5
{[%clk 0:02:53.7]} 13. h3 {[%clk 0:02:24.7]} 13... Rac8 {[%clk 0:02:52.4]} 14.
Bf4 {[%clk 0:02:21.8]} 14... Nxc4 {[%clk 0:02:32.2]} 15. dxc4 {[%clk 0:02:18.7]}
15... Qc5 {[%clk 0:02:12.6]} 16. Be3 {[%clk 0:02:06.6]} 16... Qc7 {[%clk
0:02:07.4]} 17. Bd4 {[%clk 0:02:04.8]} 17... Nd7 {[%clk 0:01:53.3]} 18. Nb5
{[%clk 0:02:03]} 18... Qd8 {[%clk 0:01:46]} 19. Nxa7 {[%clk 0:01:56]} 19... Bxe5
{[%clk 0:01:19.5]} 20. Bxe5 {[%clk 0:01:51.7]} 20... Nxe5 {[%clk 0:01:19.4]} 21.
Nxc8 {[%clk 0:01:44.8]} 21... f6 {[%clk 0:01:18.2]} 22. Nb6 {[%clk 0:01:39.6]}
22... Nd3 {[%clk 0:01:17.7]} 23. Re3 {[%clk 0:01:38.1]} 23... Nc5 {[%clk
0:01:18]} 24. Qb5 {[%clk 0:01:34.8]} 24... Qd6 {[%clk 0:01:16]} 25. Rae1 {[%clk
0:01:19.9]} 25... Nd3 {[%clk 0:01:16.2]} 26. Rxd3 {[%clk 0:01:10.1]} 26... Bxd3
{[%clk 0:01:16.2]} 27. b3 {[%clk 0:01:10.6]} 27... Qf4 {[%clk 0:01:14.9]} 28.
Qb4 {[%clk 0:01:08.5]} 28... Qd4 {[%clk 0:01:08.1]} 29. Rxe7 {[%clk 0:01:03.4]}
29... Qa1+ {[%clk 0:01:05.4]} 30. Qe1 {[%clk 0:01:02.7]} 30... Qxa2 {[%clk
0:01:02.3]} 31. Nd7 {[%clk 0:01:02]} 1-0

[Event "*** SCC Grand Prix: Titled Tuesday Blitz"]
[Site "Chess.com"]
[Date "2020.10.13"]
[Round "3"]
[White "Margency"]
[Black "Inga83"]
[Result "1-0"]
[WhiteElo "2600"]
[BlackElo "2405"]
[TimeControl "180+1"]
[EndTime "10:27:12 PDT"]
[Termination "Margency won by resignation"]

1. e4 {[%clk 0:03:00.9]} 1... c6 {[%clk 0:02:57.5]} 2. d4 {[%clk 0:03:00.9]}
2... d5 {[%clk 0:02:57.7]} 3. exd5 {[%clk 0:03:01.8]} 3... cxd5 {[%clk
0:02:56.5]} 4. c4 {[%clk 0:03:02.4]} 4... Nf6 {[%clk 0:02:54.9]} 5. Nc3 {[%clk
0:03:02.5]} 5... Nc6 {[%clk 0:02:55]} 6. Bg5 {[%clk 0:03:02.1]} 6... dxc4 {[%clk
0:02:41.3]} 7. Bxc4 {[%clk 0:03:01.4]} 7... e6 {[%clk 0:02:39.5]} 8. Nf3 {[%clk
0:03:00.7]} 8... Be7 {[%clk 0:02:35.7]} 9. O-O {[%clk 0:03:00.1]} 9... O-O
{[%clk 0:02:34.1]} 10. Re1 {[%clk 0:02:59.3]} 10... Nb4 {[%clk 0:02:32.9]} 11.
Qd2 {[%clk 0:02:38]} 11... h6 {[%clk 0:02:17.1]} 12. Bf4 {[%clk 0:02:22.7]}
12... Nbd5 {[%clk 0:02:13.9]} 13. Be5 {[%clk 0:02:18.5]} 13... Nxc3 {[%clk
0:02:02.8]} 14. bxc3 {[%clk 0:02:14.2]} 14... b6 {[%clk 0:01:58.4]} 15. Qf4
{[%clk 0:01:52.4]} 15... Bb7 {[%clk 0:01:59.3]} 16. Bb3 {[%clk 0:01:49.2]} 16...
Rc8 {[%clk 0:01:59.9]} 17. c4 {[%clk 0:01:47.3]} 17... a6 {[%clk 0:01:45.9]} 18.
Rad1 {[%clk 0:01:46.2]} 18... b5 {[%clk 0:01:44.7]} 19. d5 {[%clk 0:01:34.6]}
19... exd5 {[%clk 0:01:34.4]} 20. cxd5 {[%clk 0:01:33.6]} 20... Re8 {[%clk
0:01:08.8]} 21. d6 {[%clk 0:01:23.6]} 21... Bf8 {[%clk 0:00:45.7]} 22. d7 {[%clk
0:01:23.2]} 22... Rxe5 {[%clk 0:00:34.6]} 23. Nxe5 {[%clk 0:01:18.2]} 23... Rc4
{[%clk 0:00:28.7]} 24. Nxc4 {[%clk 0:01:14.3]} 24... bxc4 {[%clk 0:00:28.3]} 25.
Qxc4 {[%clk 0:01:14.9]} 1-0

[Event "*** SCC Grand Prix: Titled Tuesday Blitz"]
[Site "Chess.com"]
[Date "2020.10.13"]
[Round "3"]
[White "thedjoker98"]
[Black "Das_Virus_2020"]
[Result "1-0"]
[WhiteElo "2594"]
[BlackElo "2397"]
[TimeControl "180+1"]
[EndTime "10:27:12 PDT"]
[Termination "thedjoker98 won by resignation"]

1. d4 {[%clk 0:03:00.9]} 1... Nf6 {[%clk 0:02:56.6]} 2. c4 {[%clk 0:03:01.4]}
2... c5 {[%clk 0:02:55.7]} 3. d5 {[%clk 0:03:01.3]} 3... b5 {[%clk 0:02:54.4]}
4. cxb5 {[%clk 0:03:02.2]} 4... a6 {[%clk 0:02:54.6]} 5. bxa6 {[%clk 0:03:03.1]}
5... g6 {[%clk 0:02:54.2]} 6. Nc3 {[%clk 0:03:03.1]} 6... Bxa6 {[%clk
0:02:54.2]} 7. e4 {[%clk 0:03:01.8]} 7... Bxf1 {[%clk 0:02:54.6]} 8. Kxf1 {[%clk
0:03:02.7]} 8... d6 {[%clk 0:02:55]} 9. Nf3 {[%clk 0:03:03.2]} 9... Nbd7 {[%clk
0:02:54.5]} 10. g3 {[%clk 0:03:04.1]} 10... Bg7 {[%clk 0:02:54.8]} 11. Kg2
{[%clk 0:03:05]} 11... O-O {[%clk 0:02:54.7]} 12. a4 {[%clk 0:03:05.9]} 12...
Ng4 {[%clk 0:02:50.9]} 13. Qe2 {[%clk 0:03:04.2]} 13... c4 {[%clk 0:02:37.8]}
14. Nd2 {[%clk 0:03:02.1]} 14... Nge5 {[%clk 0:02:34.9]} 15. Nxc4 {[%clk
0:03:01.6]} 15... Nxc4 {[%clk 0:02:33.6]} 16. Qxc4 {[%clk 0:03:02.5]} 16... Ne5
{[%clk 0:02:28.3]} 17. Qe2 {[%clk 0:03:02.3]} 17... Qa5 {[%clk 0:02:21.7]} 18.
Bd2 {[%clk 0:02:56.3]} 18... Qb4 {[%clk 0:02:17.5]} 19. Rhb1 {[%clk 0:02:32.8]}
19... Nc4 {[%clk 0:02:12.4]} 20. Be1 {[%clk 0:02:32.8]} 20... Rfb8 {[%clk
0:02:00.4]} 21. b3 {[%clk 0:02:18.6]} 21... Na3 {[%clk 0:00:34.1]} 22. Nb5
{[%clk 0:02:18.5]} 22... Qc5 {[%clk 0:00:33]} 23. Rxa3 {[%clk 0:02:02]} 23...
Rxb5 {[%clk 0:00:30.5]} 24. b4 {[%clk 0:02:02.1]} 24... Qb6 {[%clk 0:00:19]} 25.
Qxb5 {[%clk 0:01:54.1]} 25... Qxb5 {[%clk 0:00:18.8]} 26. axb5 {[%clk 0:01:55]}
26... Rxa3 {[%clk 0:00:19.1]} 27. b6 {[%clk 0:01:52.8]} 27... Bd4 {[%clk
0:00:16.7]} 28. b7 {[%clk 0:01:49.9]} 28... Ba7 {[%clk 0:00:16.1]} 29. Rc1
{[%clk 0:01:50.1]} 29... Kg7 {[%clk 0:00:15.3]} 30. Rc8 {[%clk 0:01:46.2]} 30...
Ra1 {[%clk 0:00:14.9]} 31. Bd2 {[%clk 0:01:45.9]} 31... Ra2 {[%clk 0:00:13.5]}
32. Be3 {[%clk 0:01:44.6]} 32... Bxe3 {[%clk 0:00:11.8]} 33. b8=Q {[%clk
0:01:44.3]} 33... Rxf2+ {[%clk 0:00:12.7]} 34. Kh3 {[%clk 0:01:43.7]} 1-0

[Event "*** SCC Grand Prix: Titled Tuesday Blitz"]
[Site "Chess.com"]
[Date "2020.10.13"]
[Round "3"]
[White "Lion-Al-Messi"]
[Black "ShcufNaiRolf"]
[Result "1-0"]
[WhiteElo "2542"]
[BlackElo "2311"]
[TimeControl "180+1"]
[EndTime "10:27:13 PDT"]
[Termination "Lion-Al-Messi won by checkmate"]

1. e4 {[%clk 0:02:46.8]} 1... e5 {[%clk 0:02:58.2]} 2. Nf3 {[%clk 0:02:47]} 2...
Nc6 {[%clk 0:02:58.1]} 3. Bb5 {[%clk 0:02:47.6]} 3... a6 {[%clk 0:02:58.2]} 4.
Ba4 {[%clk 0:02:47.5]} 4... Nf6 {[%clk 0:02:57.7]} 5. O-O {[%clk 0:02:47.7]}
5... Be7 {[%clk 0:02:57.2]} 6. Qe2 {[%clk 0:02:48.1]} 6... b5 {[%clk 0:02:54.5]}
7. Bb3 {[%clk 0:02:48]} 7... O-O {[%clk 0:02:54.9]} 8. c3 {[%clk 0:02:46.4]}
8... d6 {[%clk 0:02:33.4]} 9. Rd1 {[%clk 0:02:46]} 9... Na5 {[%clk 0:02:30.8]}
10. Bc2 {[%clk 0:02:44.7]} 10... c5 {[%clk 0:02:31.2]} 11. d4 {[%clk 0:02:45.1]}
11... cxd4 {[%clk 0:02:28.5]} 12. cxd4 {[%clk 0:02:44.8]} 12... Qc7 {[%clk
0:02:28.6]} 13. Nc3 {[%clk 0:02:43.7]} 13... Re8 {[%clk 0:02:05.9]} 14. dxe5
{[%clk 0:02:41.8]} 14... dxe5 {[%clk 0:02:05.1]} 15. Nd5 {[%clk 0:02:42.4]}
15... Nxd5 {[%clk 0:02:05.1]} 16. exd5 {[%clk 0:02:43.3]} 16... Bd6 {[%clk
0:01:56]} 17. Ng5 {[%clk 0:02:40]} 17... g6 {[%clk 0:01:50.3]} 18. Ne4 {[%clk
0:02:40]} 18... Bb7 {[%clk 0:01:32.2]} 19. Nf6+ {[%clk 0:02:39.7]} 19... Kg7
{[%clk 0:01:32.6]} 20. Nxe8+ {[%clk 0:02:40]} 20... Rxe8 {[%clk 0:01:33.4]} 21.
Be3 {[%clk 0:02:37.7]} 21... Nc4 {[%clk 0:01:30.2]} 22. Be4 {[%clk 0:02:37.6]}
22... f5 {[%clk 0:01:24.8]} 23. Bb1 {[%clk 0:02:34.4]} 23... e4 {[%clk
0:01:18.3]} 24. Bd4+ {[%clk 0:02:33.6]} 24... Kg8 {[%clk 0:01:18]} 25. b3 {[%clk
0:02:31.5]} 25... Bxh2+ {[%clk 0:01:13.5]} 26. Kh1 {[%clk 0:02:28.8]} 26... Ne5
{[%clk 0:01:04.4]} 27. Qc2 {[%clk 0:02:17.1]} 27... Qb8 {[%clk 0:00:43.6]} 28.
Qb2 {[%clk 0:02:06.1]} 28... Ng4 {[%clk 0:00:41.9]} 29. Bh8 {[%clk 0:02:00.1]}
29... Ne5 {[%clk 0:00:22.6]} 30. d6 {[%clk 0:02:00.4]} 30... Qd8 {[%clk
0:00:10.8]} 31. d7 {[%clk 0:01:54.9]} 31... Re6 {[%clk 0:00:09.8]} 32. Kxh2
{[%clk 0:01:49]} 32... Ng4+ {[%clk 0:00:08.5]} 33. Kg1 {[%clk 0:01:49]} 33... e3
{[%clk 0:00:07.6]} 34. Qg7# {[%clk 0:01:48.7]} 1-0

[Event "*** SCC Grand Prix: Titled Tuesday Blitz"]
[Site "Chess.com"]
[Date "2020.10.13"]
[Round "3"]
[White "Stouuf"]
[Black "margarita_2703"]
[Result "1-0"]
[WhiteElo "2593"]
[BlackElo "2397"]
[TimeControl "180+1"]
[EndTime "10:27:19 PDT"]
[Termination "Stouuf won by resignation"]

1. e4 {[%clk 0:03:00.9]} 1... Nf6 {[%clk 0:02:59.4]} 2. e5 {[%clk 0:03:00.4]}
2... Nd5 {[%clk 0:02:59.6]} 3. Nf3 {[%clk 0:03:00.2]} 3... d6 {[%clk 0:02:59.6]}
4. d4 {[%clk 0:02:52.6]} 4... g6 {[%clk 0:02:55.2]} 5. c4 {[%clk 0:02:50.7]}
5... Nb6 {[%clk 0:02:45.3]} 6. e6 {[%clk 0:02:50.6]} 6... Bxe6 {[%clk 0:02:41]}
7. d5 {[%clk 0:02:38.5]} 7... Bc8 {[%clk 0:02:27.9]} 8. Qd4 {[%clk 0:02:37]}
8... f6 {[%clk 0:02:26.8]} 9. h4 {[%clk 0:02:37.4]} 9... h5 {[%clk 0:02:14.3]}
10. Bd3 {[%clk 0:02:34.8]} 10... Rg8 {[%clk 0:02:11.5]} 11. Nc3 {[%clk 0:02:27]}
11... N8d7 {[%clk 0:02:07.8]} 12. O-O {[%clk 0:02:22.1]} 12... Ne5 {[%clk
0:01:57.2]} 13. Nxe5 {[%clk 0:02:21.4]} 13... fxe5 {[%clk 0:01:57.1]} 14. Qe3
{[%clk 0:02:16.4]} 14... e6 {[%clk 0:01:56.6]} 15. Qg3 {[%clk 0:02:04]} 15...
Qf6 {[%clk 0:01:39.5]} 16. Bg5 {[%clk 0:02:01.5]} 16... Qf7 {[%clk 0:01:39.5]}
17. f4 {[%clk 0:02:01.4]} 17... e4 {[%clk 0:01:16]} 18. Nxe4 {[%clk 0:01:58.6]}
18... Bg7 {[%clk 0:01:07.7]} 19. Rae1 {[%clk 0:01:57.7]} 19... Bd4+ {[%clk
0:00:58.3]} 20. Kh1 {[%clk 0:01:57.4]} 20... Bd7 {[%clk 0:00:55.3]} 21. dxe6
{[%clk 0:01:57.7]} 21... Bxe6 {[%clk 0:00:54.6]} 22. f5 {[%clk 0:01:57.9]} 22...
gxf5 {[%clk 0:00:53.3]} 23. Nxd6+ {[%clk 0:01:55.7]} 23... cxd6 {[%clk
0:00:47.3]} 24. Qxd6 {[%clk 0:01:56.6]} 24... Rg6 {[%clk 0:00:45.1]} 25. Bxf5
{[%clk 0:01:50.7]} 25... Nxc4 {[%clk 0:00:40.9]} 26. Bxe6 {[%clk 0:01:08.3]}
26... Nxd6 {[%clk 0:00:33.4]} 27. Bxf7+ {[%clk 0:01:08]} 1-0

[Event "*** SCC Grand Prix: Titled Tuesday Blitz"]
[Site "Chess.com"]
[Date "2020.10.13"]
[Round "3"]
[White "bocah_sakit"]
[Black "r31415"]
[Result "1-0"]
[WhiteElo "2874"]
[BlackElo "2466"]
[TimeControl "180+1"]
[EndTime "10:27:21 PDT"]
[Termination "bocah_sakit won by resignation"]

1. e4 {[%clk 0:03:00.9]} 1... e5 {[%clk 0:02:59.4]} 2. Nf3 {[%clk 0:03:00.8]}
2... Nc6 {[%clk 0:02:59.9]} 3. Bb5 {[%clk 0:03:01.3]} 3... Nf6 {[%clk
0:03:00.1]} 4. O-O {[%clk 0:03:01.2]} 4... Nxe4 {[%clk 0:03:00.2]} 5. d4 {[%clk
0:03:01.8]} 5... Nd6 {[%clk 0:03:00.8]} 6. Bxc6 {[%clk 0:03:01.3]} 6... dxc6
{[%clk 0:03:01.7]} 7. dxe5 {[%clk 0:03:02.2]} 7... Nf5 {[%clk 0:03:02.3]} 8.
Qxd8+ {[%clk 0:03:02.8]} 8... Kxd8 {[%clk 0:03:03.2]} 9. Nc3 {[%clk 0:03:03.4]}
9... Ke8 {[%clk 0:03:03.8]} 10. h3 {[%clk 0:03:03.5]} 10... Be6 {[%clk
0:03:03.9]} 11. Rd1 {[%clk 0:03:01.8]} 11... h5 {[%clk 0:03:01.7]} 12. b3 {[%clk
0:02:59.2]} 12... a5 {[%clk 0:02:58.2]} 13. Bb2 {[%clk 0:02:58.3]} 13... Bb4
{[%clk 0:02:58]} 14. Ne2 {[%clk 0:02:52.2]} 14... a4 {[%clk 0:02:53]} 15. a3
{[%clk 0:02:45.2]} 15... Be7 {[%clk 0:02:51.1]} 16. b4 {[%clk 0:02:44.8]} 16...
c5 {[%clk 0:02:41.7]} 17. bxc5 {[%clk 0:02:34]} 17... Bxc5 {[%clk 0:02:41.4]}
18. Nf4 {[%clk 0:02:34.7]} 18... Rd8 {[%clk 0:01:36.9]} 19. Ng5 {[%clk
0:02:30.5]} 19... Ke7 {[%clk 0:01:32.9]} 20. Ngxe6 {[%clk 0:02:27.3]} 20... fxe6
{[%clk 0:01:12.5]} 21. Ng6+ {[%clk 0:02:27.4]} 21... Kf7 {[%clk 0:01:12.9]} 22.
Nxh8+ {[%clk 0:02:28.3]} 22... Rxh8 {[%clk 0:01:13.2]} 23. Rd7+ {[%clk
0:02:28.3]} 23... Kg6 {[%clk 0:00:59.5]} 24. Rxc7 {[%clk 0:02:27]} 24... b6
{[%clk 0:00:58.8]} 25. Rd1 {[%clk 0:02:24.8]} 25... Ne7 {[%clk 0:00:51.6]} 26.
Rdd7 {[%clk 0:02:24.2]} 26... Nd5 {[%clk 0:00:42]} 27. Rxg7+ {[%clk 0:02:18.3]}
27... Kf5 {[%clk 0:00:42.3]} 28. Rcf7+ {[%clk 0:02:18.6]} 28... Ke4 {[%clk
0:00:42.5]} 29. Kf1 {[%clk 0:02:14.1]} 29... Rd8 {[%clk 0:00:38.5]} 30. Ke2
{[%clk 0:02:12.3]} 30... Nf4+ {[%clk 0:00:37.9]} 31. Ke1 {[%clk 0:01:35.2]}
31... Bf8 {[%clk 0:00:33.4]} 32. f3+ {[%clk 0:01:26.5]} 32... Kd5 {[%clk
0:00:23.9]} 33. Rxf4 {[%clk 0:01:26.7]} 1-0

[Event "*** SCC Grand Prix: Titled Tuesday Blitz"]
[Site "Chess.com"]
[Date "2020.10.13"]
[Round "3"]
[White "Akmal_Fayzullaev"]
[Black "GelmanAlexander"]
[Result "1-0"]
[WhiteElo "2403"]
[BlackElo "2567"]
[TimeControl "180+1"]
[EndTime "10:27:23 PDT"]
[Termination "Akmal_Fayzullaev won on time"]

1. d4 {[%clk 0:03:00.9]} 1... Nf6 {[%clk 0:02:59.1]} 2. c4 {[%clk 0:03:01.3]}
2... c5 {[%clk 0:02:59.1]} 3. d5 {[%clk 0:03:00.7]} 3... b5 {[%clk 0:02:59.2]}
4. Nd2 {[%clk 0:03:01.2]} 4... b4 {[%clk 0:02:56.5]} 5. e4 {[%clk 0:03:02.1]}
5... d6 {[%clk 0:02:57]} 6. Bd3 {[%clk 0:02:51.1]} 6... g6 {[%clk 0:02:56.9]} 7.
h3 {[%clk 0:02:51.6]} 7... Bg7 {[%clk 0:02:57]} 8. Ngf3 {[%clk 0:02:50.6]} 8...
O-O {[%clk 0:02:56.8]} 9. O-O {[%clk 0:02:51.2]} 9... e5 {[%clk 0:02:49.5]} 10.
dxe6 {[%clk 0:02:47.3]} 10... fxe6 {[%clk 0:02:46.4]} 11. Rb1 {[%clk 0:02:40.9]}
11... e5 {[%clk 0:02:44.5]} 12. Re1 {[%clk 0:02:37.2]} 12... Nc6 {[%clk
0:02:43.9]} 13. Nf1 {[%clk 0:02:37.6]} 13... Nh5 {[%clk 0:02:29.4]} 14. Ne3
{[%clk 0:02:31.8]} 14... Nf4 {[%clk 0:02:29.3]} 15. Nd5 {[%clk 0:02:30.9]} 15...
g5 {[%clk 0:01:47.3]} 16. Nh2 {[%clk 0:02:18.2]} 16... Nd4 {[%clk 0:01:40.6]}
17. Ng4 {[%clk 0:02:04.4]} 17... h5 {[%clk 0:01:24]} 18. Nge3 {[%clk 0:01:49.9]}
18... Nxh3+ {[%clk 0:01:09.1]} 19. gxh3 {[%clk 0:01:44.5]} 19... Nf3+ {[%clk
0:01:07.3]} 20. Kg2 {[%clk 0:01:44.9]} 20... g4 {[%clk 0:01:07.2]} 21. Nf5
{[%clk 0:01:38]} 21... Bxf5 {[%clk 0:00:44.4]} 22. exf5 {[%clk 0:01:38.9]} 22...
Qh4 {[%clk 0:00:45]} 23. Rh1 {[%clk 0:01:34.8]} 23... Ng5 {[%clk 0:00:07.8]} 24.
Bxg5 {[%clk 0:01:33.4]} 24... Qxg5 {[%clk 0:00:02]} 25. hxg4 {[%clk 0:01:33.3]}
25... hxg4 {[%clk 0:00:02.1]} 26. Qc1 {[%clk 0:01:28.8]} 1-0

[Event "*** SCC Grand Prix: Titled Tuesday Blitz"]
[Site "Chess.com"]
[Date "2020.10.13"]
[Round "3"]
[White "BanjoKazooieN64"]
[Black "Msb2"]
[Result "0-1"]
[WhiteElo "2473"]
[BlackElo "2929"]
[TimeControl "180+1"]
[EndTime "10:27:27 PDT"]
[Termination "Msb2 won by resignation"]

1. e4 {[%clk 0:03:00.9]} 1... e6 {[%clk 0:02:58.6]} 2. d4 {[%clk 0:02:59.9]}
2... d5 {[%clk 0:02:51.8]} 3. Nc3 {[%clk 0:02:59.9]} 3... Nf6 {[%clk 0:02:51]}
4. e5 {[%clk 0:02:58.4]} 4... Nfd7 {[%clk 0:02:51.4]} 5. f4 {[%clk 0:02:58.5]}
5... c5 {[%clk 0:02:52.1]} 6. Nf3 {[%clk 0:02:58.8]} 6... Nc6 {[%clk 0:02:53]}
7. Be3 {[%clk 0:02:59]} 7... a6 {[%clk 0:02:53.9]} 8. Qd2 {[%clk 0:02:58.7]}
8... b5 {[%clk 0:02:54.1]} 9. dxc5 {[%clk 0:02:58.8]} 9... Bxc5 {[%clk 0:02:55]}
10. O-O-O {[%clk 0:02:54]} 10... O-O {[%clk 0:02:51.1]} 11. Ne2 {[%clk
0:02:51.2]} 11... b4 {[%clk 0:02:48.9]} 12. Bxc5 {[%clk 0:02:47.5]} 12... Nxc5
{[%clk 0:02:49.8]} 13. Qe3 {[%clk 0:02:47.1]} 13... Qa5 {[%clk 0:02:48.4]} 14.
Kb1 {[%clk 0:02:44.4]} 14... Bd7 {[%clk 0:02:44.3]} 15. Ned4 {[%clk 0:02:43.9]}
15... Nxd4 {[%clk 0:02:43.3]} 16. Nxd4 {[%clk 0:02:43.9]} 16... Rfc8 {[%clk
0:02:44]} 17. g4 {[%clk 0:02:38.2]} 17... Ne4 {[%clk 0:02:37.9]} 18. Bd3 {[%clk
0:02:32.3]} 18... Qc5 {[%clk 0:02:12.1]} 19. f5 {[%clk 0:02:26.3]} 19... a5
{[%clk 0:02:09.5]} 20. f6 {[%clk 0:02:24.8]} 20... a4 {[%clk 0:01:59.6]} 21.
Bxe4 {[%clk 0:01:58.6]} 21... dxe4 {[%clk 0:02:00.5]} 22. Qg5 {[%clk 0:01:57.1]}
22... g6 {[%clk 0:01:57.2]} 23. Nf5 {[%clk 0:01:33.3]} 23... exf5 {[%clk
0:01:37.7]} 24. Rxd7 {[%clk 0:01:31.8]} 24... Qxc2+ {[%clk 0:01:21.5]} 25. Ka1
{[%clk 0:01:31.2]} 25... a3 {[%clk 0:01:22.4]} 26. Rb1 {[%clk 0:01:05.5]} 26...
b3 {[%clk 0:01:21.6]} 27. Qd2 {[%clk 0:00:37.6]} 27... axb2+ {[%clk 0:01:16.9]}
28. Rxb2 {[%clk 0:00:37.9]} 28... Rxa2+ {[%clk 0:01:12.4]} 29. Rxa2 {[%clk
0:00:37.2]} 29... b2+ {[%clk 0:01:13.3]} 30. Rxb2 {[%clk 0:00:34.7]} 30... Ra8+
{[%clk 0:01:14.2]} 0-1